bitfinex/quotes_BTCUSD_20230114
["timestamp","ask_amount","ask_price","bid_price","bid_amount"]
[1673707492715,0.00511842,20742.0,20739.0,0.1]
[1673707492957,0.00511842,20742.0,20738.0,0.30006]
[1673707492958,0.00511842,20742.0,20738.0,6e-05]
[1673707493269,0.18572595,20741.0,20738.0,6e-05]
[1673707493536,1.14508764,20740.0,20738.0,6e-05]
[1673707493790,0.320874,20739.0,20738.0,6e-05]
[1673707494843,0.79807569,20739.0,20738.0,6e-05]
[1673707495622,0.89807569,20739.0,20738.0,6e-05]
[1673707495908,0.320874,20739.0,20738.0,6e-05]
[1673707496649,0.00511842,20742.0,20738.0,6e-05]
[1673707496911,0.00511842,20742.0,20738.0,0.19078595]
[1673707497198,0.00511842,20742.0,20739.0,0.19072595]
[1673707497436,0.00511842,20742.0,20739.0,0.48216]
[1673707497686,0.00511842,20742.0,20738.0,6e-05]
[1673707497966,0.00511842,20742.0,20738.0,0.67298595]
[1673707498536,0.00511842,20742.0,20739.0,0.49072595]
[1673707498758,0.00511842,20742.0,20740.0,1.6437786]
[1673707499012,0.00511842,20742.0,20740.0,1.44648]
[1673707499285,0.00511842,20742.0,20741.0,0.3]
[1673707499541,0.00511842,20742.0,20740.0,1.44648]
[1673707499804,0.19084437,20742.0,20740.0,0.96432]
[1673707500069,0.00511842,20742.0,20738.0,0.48226]
[1673707500331,0.19084437,20742.0,20738.0,0.48226]
[1673707500876,0.18572595,20741.0,20738.0,6e-05]
[1673707501143,0.320874,20740.0,20738.0,6e-05]
[1673707501370,0.213855,20739.0,20738.0,6e-05]
[1673707501616,0.95934569,20741.0,20738.0,6e-05]
[1673707501896,0.420874,20740.0,20738.0,6e-05]
[1673707502132,0.47720169,20739.0,20732.0,0.482335]
[1673707502382,0.47720169,20739.0,20730.0,5.0]
[1673707502383,0.482232,20737.0,20730.0,5.482382]
[1673707502648,0.66292764,20736.0,20730.0,5.0]
[1673707502910,1.24522164,20735.0,20730.0,5.0]
[1673707503177,0.18572595,20735.0,20730.0,6.14720712]
[1673707503445,0.48723442,20742.0,20731.0,0.19072595]
[1673707503717,0.48723442,20742.0,20733.0,0.482306]
[1673707503718,0.1,20740.0,20733.0,0.482306]
[1673707503964,0.67296037,20742.0,20734.0,0.18572595]
[1673707504247,0.00511842,20742.0,20735.0,0.18744415]
[1673707504512,0.00511768,20742.0,20736.0,0.66969515]
[1673707504764,0.00511768,20742.0,20737.0,0.35086856]
[1673707505035,0.00511768,20742.0,20738.0,1.93402615]
[1673707505272,0.00511768,20742.0,20739.0,0.18744415]
[1673707505582,0.00511768,20742.0,20740.0,0.96432]
[1673707505864,0.00511768,20742.0,20741.0,0.1]
[1673707506097,0.00511768,20742.0,20741.0,0.60339241]
[1673707506640,2.00493673,20745.0,20742.0,0.1]
[1673707506889,2.00493673,20745.0,20742.0,0.482111]
[1673707507153,2.67286437,20745.0,20740.0,0.48216]
[1673707507392,2.67286437,20745.0,20738.0,0.482194]
[1673707507393,0.19072595,20744.0,20738.0,0.482194]
[1673707507643,2.19566268,20745.0,20739.0,0.5786092]
[1673707507892,2.19566268,20745.0,20739.0,0.482168]
[1673707508691,2.19566268,20745.0,20740.0,0.48744415]
[1673707509137,2.19566268,20745.0,20741.0,1.74078036]
[1673707509138,2.00493673,20745.0,20741.0,1.74078036]
[1673707509144,2.00493673,20745.0,20741.0,2.32528012]
[1673707509395,2.00493673,20745.0,20742.0,0.48744415]
[1673707509644,2.00493673,20745.0,20743.0,0.96418]
[1673707510175,2.00493673,20745.0,20744.0,0.3]
[1673707510443,2.00493673,20745.0,20743.0,0.96418]
[1673707510705,2.00493673,20745.0,20741.0,0.482125]
[1673707510956,2.19566268,20745.0,20741.0,0.477125]
[1673707511485,2.00493673,20745.0,20742.0,0.18744415]
[1673707511743,2.00493673,20745.0,20743.0,0.18744415]
[1673707511996,2.00493673,20745.0,20743.0,1.15162415]
[1673707512245,2.00493673,20745.0,20743.0,0.96418]
[1673707512502,2.00493673,20745.0,20743.0,1.21496948]
[1673707512774,2.00493673,20745.0,20744.0,0.3]
[1673707513005,2.00493673,20745.0,20744.0,0.782067]
[1673707513263,0.00532992,20747.0,20745.0,1.83841542]
[1673707513561,0.00532992,20747.0,20746.0,1.74606]
[1673707513781,0.00532992,20747.0,20746.0,2.78101417]
[1673707514092,0.2021,20750.0,20747.0,0.00529008]
[1673707514307,0.00566103,20752.0,20748.0,1.62859384]
[1673707514569,0.481549,20767.0,20749.0,1.55287916]
[1673707514822,0.481549,20767.0,20750.0,1.60456188]
[1673707514823,0.1,20765.0,20750.0,1.60456188]
[1673707515097,0.58786728,20767.0,20751.0,3.48045916]
[1673707515379,0.58786728,20767.0,20752.0,1.25287916]
[1673707515630,0.00706559,20768.0,20753.0,2.62121547]
[1673707515631,0.1,20766.0,20753.0,2.62121547]
[1673707515891,0.1,20766.0,20754.0,0.77567747]
[1673707516139,0.00706559,20768.0,20756.0,0.6]
[1673707516422,0.00706559,20768.0,20759.0,1.926824]
[1673707516701,0.58419094,20777.0,20760.0,1.6504441]
[1673707516955,0.481222,20781.0,20766.0,1.444605]
[1673707517209,0.481174,20783.0,20768.0,0.18744415]
[1673707517210,1.53585199,20774.0,20768.0,0.18744415]
[1673707517489,2.6744865,20774.0,20769.0,2.13339682]
[1673707517764,2.6741865,20774.0,20770.0,0.3]
[1673707518006,2.6641865,20774.0,20770.0,0.663097]
[1673707518278,2.6641865,20774.0,20771.0,0.481654]
[1673707518538,2.6641865,20774.0,20773.0,0.1]
[1673707518806,2.6641865,20774.0,20773.0,1.262788]
[1673707519055,2.6641865,20774.0,20773.0,1.1190668]
[1673707519349,2.6641865,20774.0,20773.0,0.481394]
[1673707519618,2.6641865,20774.0,20769.0,0.481468]
[1673707519876,2.85491245,20774.0,20773.0,0.3]
[1673707520139,2.6641865,20774.0,20773.0,0.1744274]
[1673707520406,2.6641865,20774.0,20773.0,0.3]
[1673707520683,2.6641865,20774.0,20773.0,0.4]
[1673707520937,0.97282977,20774.0,20773.0,0.87720169]
[1673707521192,1.51938217,20784.0,20774.0,0.24916123]
[1673707521474,1.71010812,20784.0,20776.0,1.443951]
[1673707521721,0.76792764,20783.0,20777.0,0.181654]
[1673707522182,0.320874,20782.0,20773.0,0.481391]
[1673707522186,0.320874,20782.0,20773.0,0.962781]
[1673707522445,0.19072595,20781.0,20775.0,0.1]
[1673707522699,0.19072595,20781.0,20776.0,1.144266]
[1673707522956,1.51938217,20784.0,20776.0,0.481306]
[1673707523211,1.71010812,20784.0,20777.0,0.181654]
[1673707523472,1.51938217,20784.0,20779.0,0.962504]
[1673707523991,1.51938217,20784.0,20780.0,0.181654]
[1673707524237,1.51938217,20784.0,20781.0,1.144062]
[1673707524526,1.51938217,20784.0,20782.0,0.181654]
[1673707524762,1.51938217,20784.0,20783.0,1.143978]
[1673707525031,1.5000103,20793.0,20787.0,0.47720169]
[1673707525304,1.5000103,20793.0,20784.0,1.51938]
[1673707525305,1.5000103,20793.0,20789.0,0.47720169]
[1673707525577,1.5000103,20793.0,20790.0,1.13785383]
[1673707525828,1.5000103,20793.0,20790.0,0.1]
[1673707526092,1.5000103,20793.0,20785.0,1.07084012]
[1673707526341,1.5000103,20793.0,20787.0,0.481069]
[1673707526616,1.5000103,20793.0,20785.0,1.07084012]
[1673707526617,0.66792764,20792.0,20785.0,0.58972512]
[1673707526873,1.081002,20790.0,20784.0,1.84285354]
[1673707527119,0.42440807,20782.0,20781.0,5.0]
[1673707527373,0.61513402,20782.0,20781.0,5.0]
[1673707527635,1.09233571,20782.0,20781.0,1.82922885]
[1673707527891,0.93600802,20782.0,20781.0,1.82922885]
[1673707528153,0.93600802,20782.0,20770.0,0.481443]
[1673707528154,1.13966,20781.0,20765.0,0.481573]
[1673707528455,1.13966,20781.0,20769.0,0.1]
[1673707528456,1.36302964,20780.0,20769.0,0.1]
[1673707528655,1.36302964,20780.0,20767.0,0.65739683]
[1673707528656,0.98880164,20779.0,20767.0,0.481533]
[1673707528903,0.98880164,20779.0,20751.0,1.69774914]
[1673707528904,0.481334,20776.0,20764.0,0.481586]
[1673707529201,0.320874,20775.0,20764.0,0.481586]
[1673707529422,0.40458095,20774.0,20765.0,0.27586383]
[1673707529741,0.19072595,20773.0,20768.0,0.962992]
[1673707529940,1.76348662,20781.0,20768.0,0.481496]
[1673707530197,1.76348662,20781.0,20768.0,0.70550943]
[1673707530198,0.481255,20779.0,20768.0,0.70550943]
[1673707530451,0.6,20777.0,20768.0,0.17586383]
[1673707530725,0.6,20777.0,20768.0,0.96259067]
[1673707530726,0.6,20772.0,20768.0,0.96259067]
[1673707530976,1.47024664,20771.0,20768.0,0.96259067]
[1673707531235,0.88178264,20770.0,20768.0,0.96259067]
[1673707531493,0.320874,20769.0,20768.0,0.96259067]
[1673707531748,0.320874,20769.0,20768.0,1.06259067]
[1673707532012,0.47720169,20764.0,20759.0,0.022421]
[1673707532290,0.98880164,20763.0,20757.0,1.44388601]
[1673707532520,0.98178264,20762.0,20757.0,1.44388601]
[1673707532782,0.98880164,20761.0,20757.0,1.44388601]
[1673707533079,0.1,20762.0,20757.0,1.44388601]
[1673707533080,0.47720169,20759.0,20757.0,1.44388601]
[1673707533314,0.320874,20758.0,20757.0,1.44388601]
[1673707534074,0.79807569,20758.0,20757.0,1.44388601]
[1673707534337,0.89807569,20758.0,20757.0,1.44388601]
[1673707535589,1.22147525,20758.0,20757.0,1.44388601]
[1673707535850,0.47720169,20754.0,20753.0,0.01489046]
[1673707536120,1.84545064,20754.0,20753.0,0.01489046]
[1673707536352,0.69105669,20754.0,20753.0,0.01489046]
[1673707537410,2.46662674,20756.0,20753.0,0.01489046]
[1673707537640,0.47720169,20755.0,20753.0,0.01489046]
[1673707537889,0.79807569,20754.0,20753.0,0.00289046]
[1673707538156,0.320874,20754.0,20753.0,0.00289046]
[1673707538418,2.46662674,20756.0,20753.0,0.17875429]
[1673707538682,1.73915209,20756.0,20754.0,1.15740726]
[1673707538936,1.73915209,20756.0,20754.0,1.13953183]
[1673707539475,1.73915209,20756.0,20755.0,0.4]
[1673707539736,0.97744551,20756.0,20755.0,0.881811]
[1673707540039,0.5135914,20769.0,20755.0,1.24251178]
[1673707540302,0.0320874,20769.0,20757.0,0.1]
[1673707540556,0.0320874,20769.0,20758.0,0.79088057]
[1673707540830,0.48145,20771.0,20759.0,0.47586383]
[1673707541082,0.95364481,20772.0,20760.0,1.13924383]
[1673707541083,0.481422,20772.0,20760.0,1.13924383]
[1673707541374,0.57222281,20773.0,20761.0,0.56151077]
[1673707541375,0.1,20773.0,20761.0,0.56151077]
[1673707541643,0.1,20773.0,20761.0,0.26151077]
[1673707541905,0.22176016,20763.0,20759.0,0.481701]
[1673707542406,0.21676016,20763.0,20759.0,0.481701]
[1673707543194,0.02603421,20763.0,20760.0,0.17586383]
[1673707543461,0.02603421,20763.0,20761.0,0.1]
[1673707543721,0.02603421,20763.0,20761.0,1.063344]
[1673707543999,0.00652562,20770.0,20763.0,0.01545347]
[1673707544250,0.00652562,20770.0,20765.0,0.1]
[1673707544495,0.00652562,20770.0,20766.0,0.17586383]
[1673707544783,0.00652562,20770.0,20767.0,1.13891983]
[1673707545011,0.00652562,20770.0,20767.0,0.55045275]
[1673707545524,0.00652562,20770.0,20768.0,0.3]
[1673707545784,0.00652562,20770.0,20769.0,1.04801728]
[1673707546044,0.00652562,20770.0,20769.0,1.262972]
[1673707546286,0.00652562,20770.0,20769.0,1.362972]
[1673707546540,0.42440807,20782.0,20769.0,1.362972]
[1673707546796,0.42440807,20782.0,20770.0,0.69095828]
[1673707546797,0.66792764,20781.0,20770.0,0.69095828]
[1673707547049,0.481269,20779.0,20770.0,0.48638125]
[1673707547315,0.61159995,20778.0,20770.0,0.48638125]
[1673707547573,0.42440807,20782.0,20771.0,1.06792764]
[1673707547888,0.42440807,20782.0,20772.0,2.19862662]
[1673707548094,0.42440807,20782.0,20774.0,1.925452]
[1673707548346,0.42440807,20782.0,20775.0,0.91156195]
[1673707548615,0.42440807,20782.0,20777.0,0.962598]
[1673707548870,0.42440807,20782.0,20778.0,0.61151095]
[1673707549118,0.42440807,20782.0,20779.0,1.15322595]
[1673707549376,0.42440807,20782.0,20780.0,0.320749]
[1673707549621,0.42440807,20782.0,20781.0,0.481208]
[1673707549884,0.42440807,20782.0,20781.0,0.801939]
[1673707550145,0.42440807,20782.0,20776.0,0.481314]
[1673707550430,0.42440807,20782.0,20776.0,0.577576]
[1673707550655,0.42440807,20782.0,20770.0,0.48639125]
[1673707550656,0.47720169,20781.0,20770.0,0.48639125]
[1673707550920,0.90561107,20782.0,20770.0,0.6771172]
[1673707550921,1.17229369,20780.0,20770.0,0.6771172]
[1673707551167,0.47720169,20779.0,20770.0,0.6771172]
[1673707551445,0.90561107,20782.0,20770.0,0.6771172]
[1673707551446,0.90561107,20782.0,20771.0,0.19072595]
[1673707551713,0.47720169,20778.0,20772.0,0.19072595]
[1673707551936,0.95852069,20777.0,20770.0,0.00493125]
[1673707552197,0.79105769,20776.0,20770.0,0.00493125]
[1673707552501,0.47720169,20774.0,20770.0,0.00493125]
[1673707552724,2.23525169,20773.0,20763.0,0.62348327]
[1673707553016,2.23525169,20773.0,20763.0,0.01545347]
[1673707553017,0.47720169,20772.0,20763.0,0.01545347]
[1673707553238,0.47720169,20769.0,20763.0,0.01545347]
[1673707553490,0.613856,20771.0,20757.0,0.60888352]
[1673707553491,0.69105769,20768.0,20757.0,0.60888352]
[1673707553755,0.69105769,20768.0,20757.0,0.3497939]
[1673707553756,0.69105769,20767.0,20757.0,0.3497939]
[1673707554014,0.1,20771.0,20757.0,0.3497939]
[1673707554015,0.481398,20773.0,20758.0,0.19072595]
[1673707554291,0.481398,20773.0,20761.0,0.481669]
[1673707554292,0.47720169,20771.0,20761.0,0.481669]
[1673707554559,0.47720169,20770.0,20762.0,0.23889285]
[1673707554824,0.47720169,20769.0,20763.0,0.19072595]
[1673707555091,0.47720169,20768.0,20763.0,0.19072595]
[1673707555345,0.47720169,20768.0,20755.0,0.5]
[1673707555346,0.47720169,20764.0,20755.0,0.5]
[1673707555842,0.47720169,20761.0,20755.0,0.5]
[1673707555843,0.481663,20762.0,20755.0,0.5]
[1673707556101,0.1,20760.0,20755.0,0.5]
[1673707556379,0.213856,20759.0,20755.0,0.5]
[1673707556608,0.481636,20763.0,20755.0,0.5]
[1673707556858,0.47720169,20763.0,20756.0,0.19072595]
[1673707557115,0.481582,20765.0,20758.0,0.1]
[1673707557369,0.481476,20770.0,20759.0,0.19072595]
[1673707557649,0.95867769,20770.0,20760.0,0.21979854]
[1673707557924,0.95867769,20770.0,20758.0,0.48173]
[1673707557925,0.213856,20769.0,20761.0,0.19072595]
[1673707558191,0.313856,20768.0,20761.0,0.19072595]
[1673707558457,0.47720169,20763.0,20755.0,0.5]
[1673707558707,0.47720169,20763.0,20753.0,0.00289046]
[1673707558708,1.445043,20761.0,20753.0,0.00289046]
[1673707558972,0.47720169,20760.0,20753.0,0.00289046]
[1673707559237,0.47720169,20760.0,20750.0,0.0156344]
[1673707559238,1.92243369,20758.0,20750.0,0.0156344]
[1673707559508,1.18690725,20757.0,20750.0,0.0156344]
[1673707559778,0.963626,20755.0,20750.0,0.0156344]
[1673707560031,0.1,20753.0,20750.0,0.0156344]
[1673707560321,0.213856,20752.0,20750.0,0.0156344]
[1673707560574,0.581725,20759.0,20750.0,0.0156344]
[1673707561104,0.1,20762.0,20751.0,0.19072595]
[1673707561110,0.481634,20763.0,20751.0,0.67262895]
[1673707561357,0.481567,20766.0,20750.0,0.4975454]
[1673707561358,0.47720169,20757.0,20752.0,0.19072595]
[1673707561621,1.65464869,20756.0,20752.0,0.19072595]
[1673707561874,0.69105769,20755.0,20750.0,0.0156344]
[1673707562123,0.963591,20756.0,20750.0,0.0156344]
[1673707562124,2.18820456,20754.0,20750.0,0.0156344]
[1673707562549,0.69105769,20753.0,20750.0,0.0156344]
[1673707562550,0.47720169,20751.0,20750.0,4.4e-06]
[1673707562769,0.47720169,20751.0,20745.0,0.81808946]
[1673707562770,0.57720169,20751.0,20745.0,0.81808946]
[1673707562989,0.47720169,20747.0,20745.0,0.81808946]
[1673707563226,0.47720169,20747.0,20745.0,9.46e-06]
[1673707563227,1.44124169,20746.0,20745.0,9.46e-06]
[1673707563507,1.65509769,20746.0,20745.0,9.46e-06]
[1673707563714,2.21087098,20746.0,20731.0,0.01728714]
[1673707563944,0.47720169,20742.0,20731.0,0.01728714]
[1673707564185,0.482084,20744.0,20731.0,0.49963514]
[1673707564382,0.213856,20743.0,20735.0,0.1]
[1673707564597,2.404,20747.0,20735.0,0.1]
[1673707564817,0.213856,20746.0,20742.0,0.19072595]
[1673707565031,0.47720169,20745.0,20735.0,0.482253]
[1673707565248,0.47720169,20743.0,20731.0,0.01728714]
[1673707565492,1.92354069,20742.0,20731.0,0.01728714]
[1673707565706,2.43739669,20742.0,20741.0,4.05070981]
[1673707565943,2.43739669,20742.0,20731.0,0.01728714]
[1673707565944,0.7456542,20741.0,20731.0,0.01728714]
[1673707566140,0.482181,20740.0,20732.0,0.19072595]
[1673707566351,0.213856,20739.0,20732.0,0.19072595]
[1673707566586,0.47720169,20739.0,20731.0,0.01728714]
[1673707566805,0.47720169,20739.0,20732.0,0.19072595]
[1673707567035,0.47720169,20739.0,20731.0,0.49138931]
[1673707567351,0.46046495,20738.0,20731.0,0.20801309]
[1673707567567,0.482255,20736.0,20731.0,0.01728714]
[1673707567788,0.1,20734.0,20730.0,4.49428714]
[1673707568036,0.47720169,20733.0,20730.0,4.49428714]
[1673707568249,0.69105769,20732.0,20730.0,4.49428714]
[1673707568494,0.48234,20733.0,20730.0,4.49428714]
[1673707568495,0.47720169,20731.0,20730.0,4.49428714]
[1673707569049,0.95957069,20731.0,20730.0,4.49428714]
[1673707569321,1.17342669,20731.0,20730.0,4.49428714]
[1673707569843,1.38724016,20731.0,20730.0,4.49428714]
[1673707570092,1.48724016,20731.0,20730.0,3.74862714]
[1673707570340,1.27342669,20731.0,20730.0,3.74862714]
[1673707570625,1.57342669,20731.0,20730.0,2.9888]
[1673707570860,1.82724016,20731.0,20730.0,2.9888]
[1673707571170,1.82724016,20731.0,20730.0,2.5888]
[1673707571376,1.02742687,20729.0,20724.0,0.01673674]
[1673707571626,2.57251076,20729.0,20724.0,0.20746269]
[1673707571918,0.1,20727.0,20724.0,0.01673674]
[1673707572142,0.47720169,20727.0,20724.0,0.01673674]
[1673707572389,0.69105769,20726.0,20724.0,0.01673674]
[1673707572648,0.47720169,20725.0,20724.0,0.01673674]
[1673707572914,0.69105769,20725.0,20724.0,0.01673674]
[1673707573162,1.57356669,20725.0,20724.0,0.01673674]
[1673707573436,4.67787103,20725.0,20724.0,3.674e-05]
[1673707573720,4.67787103,20725.0,20712.0,0.05]
[1673707573721,0.01673,20724.0,20712.0,0.05]
[1673707573989,1.447848,20721.0,20712.0,0.05]
[1673707574239,0.213856,20720.0,20712.0,0.24072595]
[1673707574488,0.482616,20721.0,20712.0,0.72352495]
[1673707575029,0.482582,20722.0,20712.0,0.72352495]
[1673707575030,0.482631,20720.0,20712.0,0.72352495]
[1673707575826,0.482635,20720.0,20712.0,0.72352495]
[1673707576405,0.6256681,20720.0,20713.0,0.19072595]
[1673707576654,0.46511404,20721.0,20714.0,0.19072595]
[1673707576941,0.9196072,20724.0,20715.0,0.19072595]
[1673707577208,2.886515,20725.0,20717.0,0.965365]
[1673707577209,2.404,20725.0,20717.0,0.965365]
[1673707577465,2.383,20725.0,20718.0,0.49072595]
[1673707577755,1.02742687,20729.0,20720.0,0.965246]
[1673707577756,1.50985287,20729.0,20720.0,0.965246]
[1673707578023,1.50985287,20729.0,20716.0,0.482716]
[1673707578024,0.47720169,20726.0,20721.0,0.19072595]
[1673707578274,2.13861769,20725.0,20721.0,0.19072595]
[1673707578529,1.50985387,20729.0,20721.0,0.19072595]
[1673707578783,1.50985387,20729.0,20722.0,0.19072595]
[1673707579046,1.50985387,20729.0,20724.0,0.48253]
[1673707579047,0.02248678,20725.0,20724.0,0.48253]
[1673707579310,6.78e-06,20725.0,20724.0,2.07665295]
[1673707579597,6.78e-06,20725.0,20724.0,2.85385464]
[1673707579844,0.43942939,20735.0,20725.0,0.10006]
[1673707580096,0.43976712,20741.0,20728.0,1.447317]
[1673707580382,0.482131,20742.0,20729.0,1.40084703]
[1673707580644,0.47720169,20740.0,20730.0,1.26236003]
[1673707580902,0.482089,20744.0,20730.0,1.26236003]
[1673707580903,0.482054,20745.0,20731.0,0.94240374]
[1673707581163,0.47720169,20745.0,20735.0,1.446814]
[1673707581419,0.482011,20747.0,20736.0,0.19072595]
[1673707581722,10.74016377,20768.0,20736.0,0.19072595]
[1673707581723,2.869968,20749.0,20737.0,0.67293395]
[1673707581969,1.686391,20752.0,20738.0,1.05442433]
[1673707582227,0.481804,20756.0,20742.0,0.482108]
[1673707582505,0.481753,20758.0,20744.0,0.19072595]
[1673707582506,0.9203066,20758.0,20744.0,0.19072595]
[1673707582758,1.183,20760.0,20748.0,0.481969]
[1673707583048,1.183,20760.0,20747.0,0.481985]
[1673707583049,0.47720169,20757.0,20749.0,0.19072595]
[1673707583306,0.481726,20759.0,20750.0,0.19072595]
[1673707583307,0.95902169,20755.0,20750.0,0.19072595]
[1673707583590,0.76301886,20754.0,20750.0,0.19072595]
[1673707583855,0.213856,20753.0,20751.0,0.19072595]
[1673707584126,1.2035,20759.0,20751.0,0.19072595]
[1673707584400,1.664702,20760.0,20751.0,0.19072595]
[1673707584401,0.47720169,20758.0,20751.0,0.19072595]
[1673707584651,0.213856,20757.0,20752.0,0.19072595]
[1673707584922,1.66020169,20760.0,20753.0,0.18972595]
[1673707585203,1.66020169,20760.0,20754.0,0.19072595]
[1673707585204,1.183,20760.0,20754.0,0.19072595]
[1673707585475,1.183,20760.0,20755.0,0.19072595]
[1673707585767,1.183,20760.0,20752.0,0.5009526]
[1673707585768,1.183,20760.0,20756.0,0.19072595]
[1673707586028,1.183,20760.0,20757.0,0.19072595]
[1673707586301,0.00587523,20764.0,20758.0,0.19072595]
[1673707586560,0.00587523,20764.0,20759.0,0.19072595]
[1673707586813,0.69105769,20763.0,20759.0,0.19072595]
[1673707587281,0.69105769,20763.0,20744.0,0.482065]
[1673707587282,0.28992129,20757.0,20744.0,0.482065]
[1673707587542,0.213856,20756.0,20745.0,0.482026]
[1673707587795,1.24888898,20757.0,20747.0,0.481996]
[1673707588061,1.24888898,20757.0,20748.0,0.19072595]
[1673707588338,1.24888898,20757.0,20749.0,0.19072595]
[1673707588339,0.28992129,20757.0,20749.0,0.19072595]
[1673707588581,0.28992129,20757.0,20750.0,0.53066355]
[1673707588833,0.28992129,20757.0,20751.0,0.61159095]
[1673707589088,0.28992129,20757.0,20752.0,1.47531495]
[1673707589338,0.28992129,20757.0,20753.0,0.19072595]
[1673707589606,0.25839809,20758.0,20753.0,0.19072595]
[1673707589607,0.25839809,20758.0,20754.0,1.57525095]
[1673707589840,0.00587523,20764.0,20756.0,0.1]
[1673707590122,0.00587523,20764.0,20758.0,0.963464]
[1673707590374,0.00587523,20764.0,20759.0,0.51159095]
[1673707590628,0.00540108,20767.0,20761.0,0.1]
[1673707590897,0.00540108,20767.0,20762.0,0.19072595]
[1673707591139,0.48260277,20767.0,20763.0,0.19072595]
[1673707591427,0.213856,20766.0,20763.0,0.19072595]
[1673707591653,0.213856,20765.0,20758.0,0.90696637]
[1673707591922,0.48694508,20767.0,20757.0,0.481757]
[1673707592228,0.48694508,20767.0,20758.0,0.19072595]
[1673707592229,0.481569,20766.0,20758.0,0.19072595]
[1673707592442,0.47720169,20765.0,20758.0,0.19072595]
[1673707592689,0.213856,20764.0,20758.0,0.19072595]
[1673707592952,0.00621954,20765.0,20758.0,0.67246495]
[1673707593211,0.00621954,20765.0,20759.0,0.62701205]
[1673707593513,0.00621954,20765.0,20760.0,0.67240295]
[1673707593770,0.00621954,20765.0,20761.0,0.91159095]
[1673707594040,0.00621954,20765.0,20762.0,1.444932]
[1673707594288,0.00621954,20765.0,20763.0,0.320865]
[1673707594545,0.00621954,20765.0,20762.0,0.963288]
[1673707594546,0.00621954,20765.0,20762.0,0.481644]
[1673707594832,0.00621954,20765.0,20763.0,0.320865]
[1673707595092,0.00621954,20765.0,20758.0,0.481734]
[1673707595349,0.213856,20764.0,20756.0,0.481778]
[1673707595609,0.48780554,20765.0,20756.0,0.481778]
[1673707595866,0.47720169,20763.0,20753.0,1.0521]
[1673707596117,0.47720169,20763.0,20753.0,0.19072595]
[1673707596118,0.96339,20760.0,20753.0,0.19072595]
[1673707596385,0.213856,20759.0,20751.0,0.481899]
[1673707596646,0.481734,20759.0,20751.0,0.481899]
[1673707596900,0.481734,20759.0,20751.0,0.67262495]
[1673707597164,0.481734,20759.0,20752.0,0.19072595]
[1673707597481,0.481734,20759.0,20752.0,0.18972595]
[1673707597482,1.10344769,20759.0,20752.0,0.18972595]
[1673707597724,0.95893569,20759.0,20752.0,0.18972595]
[1673707598256,0.47720169,20758.0,20752.0,0.19072595]
[1673707598509,2.13640569,20757.0,20752.0,0.19072595]
[1673707598769,0.213856,20756.0,20752.0,0.19072595]
[1673707599018,0.481782,20757.0,20750.0,0.1]
[1673707599284,0.481782,20757.0,20750.0,0.29072595]
[1673707599519,0.47720169,20756.0,20750.0,0.29072595]
[1673707599779,0.481821,20755.0,20750.0,0.29072595]
[1673707600149,0.481799,20756.0,20751.0,5.0]
[1673707600307,0.481681,20761.0,20752.0,0.51159095]
[1673707600559,0.481681,20761.0,20753.0,0.19072595]
[1673707600560,0.95888269,20761.0,20753.0,0.19072595]
[1673707600825,0.95888269,20761.0,20752.0,0.1]
[1673707600826,0.481706,20760.0,20754.0,0.51159095]
[1673707601074,0.481611,20764.0,20755.0,1.29338895]
[1673707601361,0.481611,20764.0,20756.0,0.19072595]
[1673707601643,0.48781154,20765.0,20758.0,0.1]
[1673707601644,0.00621954,20765.0,20758.0,0.1]
[1673707601916,0.00621954,20765.0,20759.0,0.99329695]
[1673707602165,0.00621954,20765.0,20760.0,0.19072595]
[1673707602427,0.00621954,20765.0,20761.0,0.51159095]
[1673707602709,0.00621954,20765.0,20762.0,0.29072595]
[1673707602953,0.00621954,20765.0,20763.0,0.51159095]
[1673707603212,0.00621954,20765.0,20763.0,0.67234095]
[1673707603467,0.00621954,20765.0,20764.0,0.320865]
[1673707603713,0.00621954,20765.0,20764.0,0.420865]
[1673707604983,0.00621954,20765.0,20764.0,0.320865]
[1673707604984,0.08783954,20765.0,20764.0,0.320865]
[1673707605243,0.08783954,20765.0,20753.0,0.481858]
[1673707605244,0.09778556,20765.0,20757.0,1.1132]
[1673707605494,0.00621954,20765.0,20757.0,1.1132]
[1673707605752,0.00621954,20765.0,20757.0,1.30392595]
[1673707606233,0.00621954,20765.0,20758.0,0.19072595]
[1673707606580,0.00621954,20765.0,20759.0,0.19072595]
[1673707606778,0.00621954,20765.0,20760.0,0.51159095]
[1673707607046,0.00621954,20766.0,20761.0,0.19072595]
[1673707607287,0.00621954,20766.0,20762.0,0.51159095]
[1673707607531,0.00621954,20766.0,20762.0,0.19072595]
[1673707607772,0.00621954,20766.0,20763.0,0.51159095]
[1673707608019,0.00621954,20766.0,20764.0,0.781602]
[1673707608264,0.00187702,20766.0,20765.0,0.320865]
[1673707608518,0.08349702,20766.0,20765.0,0.320865]
[1673707608795,0.08349702,20766.0,20760.0,0.481688]
[1673707609059,0.00187702,20766.0,20760.0,0.76875395]
[1673707609273,0.00187702,20766.0,20761.0,0.51159095]
[1673707609517,0.00187702,20766.0,20759.0,0.481712]
[1673707609758,0.00187702,20766.0,20760.0,0.320865]
[1673707610008,0.00187702,20766.0,20760.0,0.67240395]
[1673707610242,0.00187702,20766.0,20761.0,0.320865]
[1673707610500,0.00187702,20766.0,20761.0,0.19072595]
[1673707610755,0.00187702,20766.0,20759.0,0.1]
[1673707611027,0.00187702,20766.0,20759.0,0.29072595]
[1673707611268,0.00187702,20766.0,20760.0,0.51159095]
[1673707611552,7.02e-06,20766.0,20761.0,2.32453293]
[1673707611803,0.00621954,20772.0,20762.0,1.57764062]
[1673707611804,8.1e-06,20767.0,20762.0,1.57764062]
[1673707612068,0.00621954,20772.0,20761.0,1.544959]
[1673707612069,0.00621954,20772.0,20763.0,3.01156114]
[1673707612304,0.00621954,20772.0,20764.0,0.97469082]
[1673707612568,0.00621954,20772.0,20766.0,1.444643]
[1673707612808,9.54e-06,20772.0,20767.0,0.49072595]
[1673707613043,9.54e-06,20772.0,20768.0,1.95608495]
[1673707613295,9.54e-06,20772.0,20769.0,0.49072595]
[1673707613551,9.54e-06,20772.0,20770.0,0.320865]
[1673707613795,9.54e-06,20772.0,20765.0,0.481572]
[1673707614038,9.54e-06,20772.0,20762.0,0.481641]
[1673707614039,0.95863923,20772.0,20762.0,0.481641]
[1673707614282,0.95863923,20772.0,20762.0,0.81526909]
[1673707614527,0.95863923,20772.0,20763.0,0.19072595]
[1673707614812,9.54e-06,20772.0,20765.0,0.963126]
[1673707615050,9.54e-06,20772.0,20766.0,0.51159095]